fUSD/lending_fUSD_20240116
["ID","MTS","AMOUNT","RATE_DAILY","PERIOD"]
[311806662,1705420273618,-621.52044092,0.0003288,7]
[311806663,1705420273629,-621.52044092,0.0003288,7]
[311806664,1705420273638,-621.52044092,0.0003288,7]
[311806665,1705420273648,-621.52044092,0.0003288,7]
[311806666,1705420273658,-621.52044092,0.0003288,7]
[311806667,1705420273671,-621.52044092,0.0003288,7]
[311806668,1705420273684,-621.52044092,0.0003288,7]
[311806669,1705420273694,-621.52044092,0.0003288,7]
[311806670,1705420273704,-621.52,0.0003288,7]
[311806671,1705420273714,-2486.08176369,0.0003288,7]
[311806672,1705420273724,-2486.08176369,0.0003288,7]
[311806673,1705420273734,-2486.08176369,0.0003288,7]
[311806674,1705420273744,-2486.08176369,0.0003288,7]
[311806675,1705420273754,-2486.08176369,0.0003288,7]
[311806676,1705420273765,-2486.08176369,0.0003288,7]
[311806677,1705420273774,-2486.08176369,0.0003288,7]
[311806678,1705420273784,-2486.08176369,0.0003288,7]
[311806679,1705420273794,-2486.08176369,0.0003288,7]
[311806680,1705420273803,-2486.08176369,0.0003288,7]
[311806681,1705420273813,-2486.08176369,0.0003288,7]
[311806682,1705420273822,-552.60958677,0.0003288,7]
[311806683,1705420273833,-552.60958677,0.0003288,7]
[311806684,1705420273842,-552.60958677,0.0003288,7]
[311806685,1705420273853,-552.60958677,0.0003288,7]
[311806686,1705420273863,-552.60958677,0.0003288,7]
[311806687,1705420273873,-552.60958677,0.0003288,7]
[311806688,1705420273883,-552.60958677,0.0003288,7]
[311806689,1705420273893,-552.60958677,0.0003288,7]
[311806690,1705420273902,-552.60958677,0.0003288,7]
[311806691,1705420273912,-552.60958677,0.0003288,7]
[311806692,1705420273922,-552.60958677,0.0003288,7]
[311806693,1705420273933,-552.60958677,0.0003288,7]
[311806694,1705420273943,-552.60958677,0.0003288,7]
[311806695,1705420273954,-552.60958677,0.0003288,7]
[311806696,1705420273967,-552.60958677,0.0003288,7]
[311806697,1705420273977,-552.60958677,0.0003288,7]
[311806698,1705420273987,-552.60958677,0.0003288,7]
[311806699,1705420273997,-552.60958677,0.0003288,7]
[311806700,1705420274006,-552.60958677,0.0003288,7]
[311806701,1705420274017,-552.6,0.0003288,7]
[311806702,1705420274027,-2210.43834707,0.0003288,7]
[311806703,1705420274038,-2210.43834707,0.0003288,7]
[311806704,1705420274048,-2210.43834707,0.0003288,7]
[311806705,1705420274058,-2210.43834707,0.0003288,7]
[311806706,1705420274067,-2210.43834707,0.0003288,7]
[311806707,1705420274077,-2210.43834707,0.0003288,7]
[311806708,1705420274089,-2210.43834707,0.0003288,7]
[311806709,1705420274099,-2210.43834707,0.0003288,7]
[311806710,1705420274108,-2210.43834707,0.0003288,7]
[311806711,1705420274115,-2210.43834707,0.0003288,7]
[311806712,1705420274122,-2210.43834707,0.0003288,7]
[311806713,1705420274130,-515.84532137,0.0003288,7]
[311806714,1705420274138,-515.84532137,0.0003288,7]
[311806715,1705420274146,-515.84532137,0.0003288,7]
[311806716,1705420274156,-515.84532137,0.0003288,7]
[311806717,1705420274166,-515.84532137,0.0003288,7]
[311806718,1705420274175,-515.84532137,0.0003288,7]
[311806719,1705420274185,-515.84532137,0.0003288,7]
[311806720,1705420274195,-515.84532137,0.0003288,7]
[311806721,1705420274204,-515.84532137,0.0003288,7]
[311806722,1705420274213,-515.84532137,0.0003288,7]
[311806723,1705420274222,-515.84532137,0.0003288,7]
[311806724,1705420274231,-515.84532137,0.0003288,7]
[311806725,1705420274240,-515.84532137,0.0003288,7]
[311806726,1705420274250,-515.84532137,0.0003288,7]
[311806727,1705420274259,-515.84532137,0.0003288,7]
[311806728,1705420274269,-515.84532137,0.0003288,7]
[311806729,1705420274279,-515.84532137,0.0003288,7]
[311806730,1705420274289,-515.84532137,0.0003288,7]
[311806731,1705420274299,-515.84532137,0.0003288,7]
[311806732,1705420274308,-515.84,0.0003288,7]
[311806733,1705420274319,-2063.38128549,0.0003288,7]
[311806734,1705420274330,-2063.38128549,0.0003288,7]
[311806735,1705420274340,-2063.38128549,0.0003288,7]
[311806736,1705420274350,-2063.38128549,0.0003288,7]
[311806737,1705420274360,-2063.38128549,0.0003288,7]
[311806738,1705420274371,-2063.38128549,0.0003288,7]
[311806739,1705420274386,-2063.38128549,0.0003288,7]
[311806740,1705420274396,-2063.38128549,0.0003288,7]
[311806741,1705420274406,-2063.38128549,0.0003288,7]
[311806742,1705420274418,-2063.38128549,0.0003288,7]
[311806743,1705420274428,-2063.38128549,0.0003288,7]
[311806744,1705420274437,-2063.38128549,0.0003288,7]
[311806745,1705420274447,-2063.38128549,0.0003288,7]
[311806746,1705420274458,-2063.38128549,0.0003288,7]
[311806747,1705420274469,-183.43636957,0.0003288,7]
[311806748,1705420274478,-183.43636957,0.0003288,7]
[311806749,1705420274488,-183.43636957,0.0003288,7]
[311806750,1705420274497,-183.43636957,0.0003288,7]
[311806751,1705420274507,-183.43636957,0.0003288,7]
[311806752,1705420274517,-183.43636957,0.0003288,7]
[311806753,1705420274526,-183.43636957,0.0003288,7]
[311806754,1705420274538,-183.43636957,0.0003288,7]
[311806755,1705420274548,-183.43636957,0.0003288,7]
[311806756,1705420274558,-183.43636957,0.0003288,7]
[311806757,1705420274568,-183.43636957,0.0003288,7]
[311806758,1705420274578,-183.43636957,0.0003288,7]
[311806759,1705420274590,-183.43636957,0.0003288,7]
[311806760,1705420274601,-183.43636957,0.0003288,7]
[311806761,1705420274611,-183.43636957,0.0003288,7]
[311806762,1705420274621,-183.43636957,0.0003288,7]
[311806763,1705420274631,-183.43636957,0.0003288,7]
[311806764,1705420274641,-183.43636957,0.0003288,7]
[311806765,1705420274652,-183.43636957,0.0003288,7]
[311806766,1705420274663,-183.43,0.0003288,7]
[311806767,1705420274672,-733.74547826,0.0003288,7]
[311806768,1705420274683,-733.74547826,0.0003288,7]
[311806769,1705420274694,-733.74547826,0.0003288,7]
[311806770,1705420274705,-733.74547826,0.0003288,7]
[311806771,1705420274715,-733.74547826,0.0003288,7]
[311806772,1705420274725,-733.74547826,0.0003288,7]
[311806773,1705420274736,-733.74547826,0.0003288,7]
[311806774,1705420274746,-733.74547826,0.0003288,7]
[311806775,1705420274756,-733.74547826,0.0003288,7]
[311806776,1705420274767,-733.74547826,0.0003288,7]
[311806777,1705420274777,-733.74547826,0.0003288,7]
[311806778,1705420274786,-733.74547826,0.0003288,7]
[311806779,1705420274796,-733.74547826,0.0003288,7]
[311806780,1705420274806,-733.74547826,0.0003288,7]
[311806781,1705420274815,-397.65948799,0.0003288,7]
[311806782,1705420274825,-397.65948799,0.0003288,7]
[311806783,1705420274838,-397.65948799,0.0003288,7]
[311806784,1705420274848,-397.65948799,0.0003288,7]
[311806785,1705420274857,-397.65948799,0.0003288,7]
[311806786,1705420274868,-397.65948799,0.0003288,7]
[311806787,1705420274878,-397.65948799,0.0003288,7]
[311806788,1705420274889,-397.65948799,0.0003288,7]
[311806789,1705420274899,-397.65948799,0.0003288,7]
[311806790,1705420274909,-397.65948799,0.0003288,7]
[311806791,1705420274919,-397.65948799,0.0003288,7]
[311806792,1705420274929,-397.65948799,0.0003288,7]
[311806793,1705420274939,-397.65948799,0.0003288,7]
[311806794,1705420274949,-397.65948799,0.0003288,7]
[311806795,1705420274961,-397.65948799,0.0003288,7]
[311806796,1705420275069,-397.65948799,0.0003288,7]
[311806797,1705420275079,-397.65948799,0.0003288,7]
[311806798,1705420275090,-397.65948799,0.0003288,7]
[311806799,1705420275100,-397.65948799,0.0003288,7]
[311806800,1705420275109,-397.65,0.0003288,7]
[311806801,1705420275120,-1590.63795195,0.0003288,7]
[311806802,1705420275136,-1590.63795195,0.0003288,7]
[311806803,1705420275156,-1590.63795195,0.0003288,7]
[311806804,1705420275167,-1590.63795195,0.0003288,7]
[311806805,1705420275177,-1590.63795195,0.0003288,7]
[311806806,1705420275187,-1590.63795195,0.0003288,7]
[311806807,1705420275197,-1590.63795195,0.0003288,7]
[311806808,1705420275206,-1590.63795195,0.0003288,7]
[311806809,1705420275216,-1590.63795195,0.0003288,7]
[311806810,1705420275225,-1590.63795195,0.0003288,7]
[311806811,1705420275235,-1590.63795195,0.0003288,7]
[311806812,1705420275244,-1590.63795195,0.0003288,7]
[311806813,1705420275254,-12999.999999,0.000329,2]
[311806814,1705420275263,-325.0,0.000329,2]
[311806815,1705420275273,-2000.0,0.000329,2]
[311806816,1705420275282,-441.0,0.000329,2]
[311806817,1705420275291,-1101.0,0.000329,2]
[311806818,1705420275301,-150.5803871,0.000329,2]
[311806819,1705420275310,-500.0,0.000329,2]
[311806820,1705420275320,-8000.0,0.000329,2]
[311806821,1705420275331,-200.0,0.000329,2]
[311806822,1705420275341,-5500.0,0.000329,2]
[311806823,1705420275350,-800.0,0.000329,2]
[311806824,1705420275359,-500.0,0.000329,2]
[311806825,1705420275375,-1000.0,0.000329,2]
[311806826,1705420275385,-233.24,0.00032925,2]
[311806827,1705420275396,-300.18,0.0003294,2]
[311806828,1705420275417,-500.0,0.00032987,3]
[311806829,1705420275428,-500.0,0.00032987,2]
[311806830,1705420275440,-100000.0,0.00033,3]
[311806831,1705420275455,-749.69,0.00033,2]
[311806832,1705420275468,-150.0,0.00033,7]
[311806833,1705420275479,-200.6863529,0.00033,2]
[311806834,1705420275489,-1000.0,0.00033,3]
[311806835,1705420275498,-1000.0,0.00033,3]
[311806836,1705420275514,-155.0,0.00033,4]
[311806837,1705420275525,-1095.87,0.00033,3]
[311806838,1705420275537,-391.91232328,0.00033,4]
[311806839,1705420275548,-2075.64826899,0.00033,3]
[311806840,1705420275564,-1020.80297118,0.00033,7]
[311806841,1705420275581,-600.0,0.00033,34]
[311806842,1705420275598,-958.13950453,0.00033,2]
[311806843,1705420275611,-13569.6,0.00033,3]
[311806844,1705420275624,-560.65,0.00033,2]
[311806845,1705420275636,-500000.0,0.00033,5]
[311806846,1705420275665,-500000.0,0.00033,7]
[311806847,1705420275686,-500000.0,0.00033,8]
[311806848,1705420275702,-425000.0,0.00033,4]
[311806849,1705420275714,-700.0,0.00033,4]
[311806850,1705420275737,-426077.71,0.00033,3]
[311806851,1705420275747,-300.0,0.00033,5]
[311806852,1705420275759,-2000.0,0.00033,2]
[311806853,1705420275769,-244340.15323609,0.00033,3]
[311806854,1705420276301,-118365.68676391,0.00033,3]
[311806855,1705420276310,-1450.0,0.00033,3]
[311806856,1705420276319,-593.0,0.00033,22]
[311806857,1705420276328,-26353.20131129,0.00033,4]
[311806858,1705420276338,-26353.20131129,0.00033,4]
[311806859,1705420276347,-26353.20131129,0.00033,4]
[311806860,1705420276356,-26353.20131129,0.00033,4]
[311806861,1705420276365,-26353.20131129,0.00033,4]
[311806862,1705420276375,-26353.20131129,0.00033,4]
[311806863,1705420276384,-26353.20131129,0.00033,4]
[311806864,1705420276393,-26353.20131129,0.00033,4]
[311806865,1705420276403,-26353.20131129,0.00033,4]
[311806866,1705420276413,-26353.20031129,0.00033,4]
[311806867,1705420276422,-1015.501628,0.00033,4]
[311806868,1705420276431,-2598.5141664,0.00033,2]
[311806869,1705420276440,-300.0,0.00033,6]
[311806870,1705420276450,-202.0,0.00033,2]
[311806871,1705420276460,-220.33,0.00033,2]
[311806872,1705420276469,-220.33,0.00033,2]
[311806873,1705420276479,-220.33,0.00033,2]
[311806874,1705420276489,-220.33,0.00033,2]
[311806875,1705420276498,-220.33,0.00033,2]
[311806876,1705420276508,-220.33,0.00033,2]
[311806877,1705420276517,-220.33,0.00033,2]
[311806878,1705420276526,-220.33,0.00033,2]
[311806879,1705420276535,-220.33,0.00033,2]
[311806880,1705420276544,-220.33,0.00033,2]
[311806881,1705420276554,-220.33,0.00033,2]
[311806882,1705420276563,-220.33,0.00033,2]
[311806883,1705420276572,-220.33,0.00033,2]
[311806884,1705420276582,-220.33,0.00033,2]
[311806885,1705420276591,-220.33,0.00033,2]
[311806886,1705420276601,-220.33,0.00033,2]
[311806887,1705420276610,-220.33,0.00033,2]
[311806888,1705420276620,-220.33,0.00033,2]
[311806889,1705420276629,-220.33,0.00033,2]
[311806890,1705420276639,-220.33,0.00033,2]
[311806891,1705420276648,-220.33,0.00033,2]
[311806892,1705420276658,-220.33,0.00033,2]
[311806893,1705420276668,-220.33,0.00033,2]
[311806894,1705420276678,-220.33,0.00033,2]
[311806895,1705420276688,-220.33,0.00033,2]
[311806896,1705420276698,-220.33,0.00033,2]
[311806897,1705420276707,-220.33,0.00033,2]
[311806898,1705420276717,-220.33,0.00033,2]
[311806899,1705420276727,-220.33,0.00033,2]
[311806900,1705420276737,-220.33,0.00033,2]
[311806901,1705420276747,-220.33,0.00033,2]
[311806902,1705420276756,-220.33,0.00033,2]
[311806903,1705420276766,-220.33,0.00033,2]
[311806904,1705420276777,-220.33,0.00033,2]
[311806905,1705420276787,-220.33,0.00033,2]
[311806906,1705420276797,-220.33,0.00033,2]
[311806907,1705420276807,-220.33,0.00033,2]
[311806908,1705420276818,-220.33,0.00033,2]
[311806909,1705420276828,-220.33,0.00033,2]
[311806910,1705420276839,-220.33,0.00033,2]
[311806911,1705420276848,-220.33,0.00033,2]
[311806912,1705420276857,-220.33,0.00033,2]
[311806913,1705420276867,-220.33,0.00033,2]
[311806914,1705420276876,-220.33,0.00033,2]
[311806915,1705420276886,-220.33,0.00033,2]
[311806916,1705420276895,-220.33,0.00033,2]
[311806917,1705420276905,-220.33,0.00033,2]
[311806918,1705420276914,-220.33,0.00033,2]
[311806919,1705420276924,-220.33,0.00033,2]
[311806920,1705420276934,-220.33,0.00033,2]
[311806921,1705420276943,-220.33,0.00033,2]
[311806922,1705420276953,-220.33,0.00033,2]
[311806923,1705420276963,-220.33,0.00033,2]
[311806924,1705420276972,-220.33,0.00033,2]
[311806925,1705420276982,-220.33,0.00033,2]
[311806926,1705420276991,-220.33,0.00033,2]
[311806927,1705420277000,-220.33,0.00033,2]
[311806928,1705420277009,-220.33,0.00033,2]
[311806929,1705420277021,-220.33,0.00033,2]
[311806930,1705420277041,-220.33,0.00033,2]
[311806931,1705420277053,-220.33,0.00033,2]
[311806932,1705420277063,-220.33,0.00033,2]
[311806933,1705420277074,-220.33,0.00033,2]
[311806934,1705420277090,-220.33,0.00033,2]
[311806935,1705420277107,-220.33,0.00033,2]
[311806936,1705420277117,-220.33,0.00033,2]
[311806937,1705420277127,-220.33,0.00033,2]
[311806938,1705420277138,-220.33,0.00033,2]
[311806939,1705420277148,-220.33,0.00033,2]
[311806940,1705420277158,-220.33,0.00033,2]
[311806941,1705420277167,-220.33,0.00033,2]
[311806942,1705420277177,-220.33,0.00033,2]
[311806943,1705420277187,-220.33,0.00033,2]
[311806944,1705420277196,-220.33,0.00033,2]
[311806945,1705420277205,-220.33,0.00033,2]
[311806946,1705420277214,-220.33,0.00033,2]
[311806947,1705420277224,-220.33,0.00033,2]
[311806948,1705420277233,-220.33,0.00033,2]
[311806949,1705420277242,-220.33,0.00033,2]
[311806950,1705420277252,-220.33,0.00033,2]
[311806951,1705420277261,-220.33,0.00033,2]
[311806952,1705420277271,-220.33,0.00033,2]
[311806953,1705420277280,-220.33,0.00033,2]
[311806954,1705420277290,-220.33,0.00033,2]
[311806955,1705420277298,-220.33,0.00033,2]
[311806956,1705420277308,-220.33,0.00033,2]
[311806957,1705420277317,-220.33,0.00033,2]
[311806958,1705420277326,-220.33,0.00033,2]
[311806959,1705420277338,-220.33,0.00033,2]
[311806960,1705420277347,-220.33,0.00033,2]
[311806961,1705420277357,-220.33,0.00033,2]
[311806962,1705420277366,-220.33,0.00033,2]
[311806963,1705420277376,-220.33,0.00033,2]
[311806964,1705420277386,-220.33,0.00033,2]
[311806965,1705420277395,-220.33,0.00033,2]
[311806966,1705420277404,-220.33,0.00033,2]
[311806967,1705420277413,-220.33,0.00033,2]
[311806968,1705420277422,-220.33,0.00033,2]
[311806969,1705420277432,-220.33,0.00033,2]
[311806970,1705420277441,-220.33,0.00033,2]
[311806971,1705420277450,-22347.78894003,0.00033011,2]
[311806972,1705420277459,-150.0,0.00033038,2]
[311806973,1705420277469,-150.0,0.00033038,2]
[311806974,1705420277478,-150.0,0.00033038,2]
[311806975,1705420277487,-150.0,0.00033038,2]
[311806976,1705420277497,-418.24,0.00033038,2]
[311806977,1705420277505,-418.24,0.00033038,2]
[311806978,1705420277515,-150.0,0.00033038,2]
[311806979,1705420277524,-150.0,0.00033038,2]
[311806980,1705420277533,-418.24,0.00033038,2]
[311806981,1705420277543,-418.24,0.00033038,2]
[311806982,1705420277552,-150.0,0.00033038,2]
[311806983,1705420277561,-150.0,0.00033038,2]
[311806984,1705420277570,-408.4,0.00033038,2]
[311806985,1705420277579,-857.84,0.00033038,2]
[311806986,1705420277590,-408.4,0.00033038,2]
[311806987,1705420277599,-408.4,0.00033038,2]
[311806988,1705420277609,-314.46,0.00033077,2]
[311806989,1705420277618,-1929.10876424,0.00033078,7]
[311806990,1705420277633,-556.97299945,0.00033078,7]
[311806991,1705420277642,-265.53000459,0.00033078,7]
[311806992,1705420277653,-297.27599253,0.00033078,7]
[311806993,1705420277664,-855.43694691,0.00033078,7]
[311806994,1705420277700,-262.79677064,0.00028,2]
[311806995,1705420277712,-366.92948546,0.00028,2]
[311806996,1705420277722,-792.19540304,0.00033078,7]
[311806997,1705420277731,-408.4,0.0003309,2]
[311806998,1705420277741,-393.93994926,0.0003309,2]
[311806999,1705420277752,-24.30005074,0.0003309,2]
[311807000,1705420277762,-418.24,0.0003309,2]
[311807001,1705420277772,-408.4,0.0003309,2]
[311807002,1705420277781,-150.0,0.0003309,2]
[311807003,1705420277791,-300.0,0.0003309,2]
[311807004,1705420277800,-150.0,0.0003309,2]
[311807005,1705420277809,-150.0,0.0003309,2]
[311807006,1705420277819,-150.0,0.0003309,2]
[311807007,1705420277828,-150.0,0.0003309,2]
[311807008,1705420277840,-151.0,0.00033099,7]
[311807009,1705420277848,-2000.0,0.000331,2]
[311807010,1705420277858,-300.0,0.000331,2]
[311807011,1705420277868,-423.80293686,0.00033124,2]
[311807012,1705420277878,-2000.0,0.00033134,2]
[311807013,1705420277887,-2000.0,0.00033134,2]
[311807014,1705420277897,-150.01,0.00033184,11]
[311807015,1705420277906,-150.12913908,0.00033188,2]
[311807016,1705420277915,-1000.0,0.00033214,2]
[311807017,1705420277924,-2063.38128549,0.0003322,7]
[311807018,1705420277934,-733.74547826,0.0003322,7]
[311807019,1705420277943,-500.0,0.00033228,6]
[311807020,1705420277952,-500.0,0.00033228,6]
[311807021,1705420277965,-500.0,0.00033228,6]
[311807022,1705420277974,-500.0,0.00033228,6]
[311807023,1705420277984,-500.0,0.00033228,6]
[311807024,1705420277994,-500.0,0.00033231,2]
[311807025,1705420278003,-2006.0,0.000333,2]
[311807026,1705420278013,-5200.0,0.000333,26]
[311807027,1705420278023,-254.24979336,0.000333,24]
[311807028,1705420278037,-4945.75020664,0.000333,24]
[311807029,1705420278046,-5200.0,0.000333,25]
[311807030,1705420278056,-150.524692,0.000333,2]
[311807031,1705420278066,-2014.18,0.000333,2]
[311807032,1705420278075,-510.285879,0.000333,10]
[311807033,1705420278085,-152.0,0.00033314,17]
[311807034,1705420278095,-155.0,0.00033344,4]
[311807035,1705420278104,-378.22575172,0.00033344,7]
[311807036,1705420278114,-463.4841501,0.00033344,7]
[311807037,1705420278124,-4171.35735086,0.00033344,7]
[311807038,1705420278133,-2997.67993495,0.00033344,7]
[311807039,1705420278142,-166.53777416,0.00033344,7]
[311807040,1705420278152,-1597.05742076,0.00033344,10]
[311807041,1705420278161,-357.01304617,0.00033344,7]
[311807042,1705420278170,-324.75372859,0.00033344,7]
[311807043,1705420278179,-2970.66349269,0.00033344,10]
[311807044,1705420278189,-421.97851047,0.00033344,7]
[311807045,1705420278198,-515.75151279,0.00033344,7]
[311807046,1705420278208,-267.06159809,0.00033344,7]
[311807047,1705420278217,-326.40861989,0.00033344,7]
[311807048,1705420278226,-240.50051506,0.00033344,10]
[311807049,1705420278236,-163.33484848,0.00033344,7]
[311807050,1705420278245,-2056.27940373,0.00033344,10]
[311807051,1705420278255,-181.48316498,0.00033344,7]
[311807052,1705420278264,-841.89463621,0.00033344,7]
[311807053,1705420278273,-202.16535986,0.00033344,7]
[311807054,1705420278283,-10258.40900264,0.00033344,10]
[311807055,1705420278293,-704.47069948,0.00033344,7]
[311807056,1705420278303,-585.92991314,0.00033344,7]
[311807057,1705420278320,-879.12847437,0.00033344,10]
[311807058,1705420278337,-457.24470374,0.00033344,7]
[311807059,1705420278346,-13462.65811172,0.00033344,10]
[311807060,1705420278356,-885.4420614,0.00033344,7]
[311807061,1705420278366,-245.7892351,0.00033344,7]
[311807062,1705420278376,-157.85465672,0.00033344,7]
[311807063,1705420278386,-1745.06624117,0.00033344,7]
[311807064,1705420278396,-193.89624902,0.00033344,7]
[311807065,1705420278409,-12644.5270235,0.00033344,10]
[311807066,1705420278419,-486.50716069,0.00033344,7]
[311807067,1705420278428,-918.55717922,0.00033344,7]
[311807068,1705420278437,-1658.46795239,0.00033344,7]
[311807069,1705420278447,-184.27421693,0.00033344,7]
[311807070,1705420278456,-612.29884582,0.00033344,10]
[311807071,1705420278466,-305.60710648,0.00033344,7]
[311807072,1705420278475,-373.5197968,0.00033344,7]
[311807073,1705420278486,-7347.27916476,0.00033344,10]
[311807074,1705420278496,-191.85458482,0.00033344,7]
[311807075,1705420278505,-191.85458482,0.00033344,7]
[311807076,1705420278515,-271.2128206,0.00033344,7]
[311807077,1705420278529,-170.18323019,0.00033344,7]
[311807078,1705420278539,-208.00172578,0.00033344,7]
[311807079,1705420278549,-726.53568543,0.00033344,7]
[311807080,1705420278559,-887.98805997,0.00033344,7]
[311807081,1705420278569,-367.36395824,0.00033344,10]
[311807082,1705420278579,-207.32532404,0.00033344,7]
[311807083,1705420278592,-413.61304808,0.00033344,10]
[311807084,1705420278602,-683.89857783,0.00033344,7]
[311807085,1705420278612,-947.09869468,0.00033344,7]
[311807086,1705420278622,-11313.24785632,0.00033344,10]
[311807087,1705420278632,-345.68257339,0.00033344,10]
[311807088,1705420278641,-812.67116225,0.00033344,7]
[311807089,1705420278651,-1158.73102265,0.00033344,7]
[311807090,1705420278668,-1258.45896066,0.00033344,7]
[311807091,1705420279183,-370.897592,0.00023,7]
[311807092,1705420279193,-370.897592,0.00023,7]
[311807093,1705420279203,-370.897592,0.000239,7]
[311807094,1705420279212,-370.897592,0.00025,7]
[311807095,1705420279222,-370.897592,0.00025,7]
[311807096,1705420279232,-629.7262561,0.00028,2]
[311807097,1705420279241,-629.7262561,0.00028,2]
[311807098,1705420279251,-629.7262561,0.00028,2]
[311807099,1705420279260,-62.36653296,0.00028,2]
[311807100,1705420279273,-567.35972314,0.00028,2]
[311807101,1705420279283,-629.7262561,0.00028,2]
[311807102,1705420279293,-243.69918492,0.00028,2]
[311807103,1705420279305,-386.02707118,0.00028,2]
[311807104,1705420279314,-629.7262561,0.00028,2]
[311807105,1705420279324,-629.7262561,0.00028,2]
[311807106,1705420279336,-629.7262561,0.00028,2]
[311807107,1705420279346,-629.7262561,0.00028,2]
[311807108,1705420279356,-1590.63795195,0.0003288,7]
[311807109,1705420279366,-1590.63795195,0.0003288,7]
[311807110,1705420279376,-1590.63795195,0.0003322,7]
[311807111,1705420279385,-4896.85047691,0.00033344,7]
[311807112,1705420279395,-554.79473184,0.00033344,7]
[311807113,1705420279404,-4993.15258653,0.00033344,7]
[311807114,1705420279414,-807.086922,0.00033344,7]
[311807115,1705420279424,-2969.96624261,0.00033344,10]
[311807116,1705420279434,-335.99457862,0.00033344,7]
[311807117,1705420279444,-206.70968506,0.00033344,7]
[311807118,1705420279453,-667.27654316,0.00033344,7]
[311807119,1705420279464,-1465.44070551,0.00033344,10]
[311807120,1705420279474,-162.82674506,0.00033344,10]
[311807121,1705420279484,-2645.4466102,0.000334,14]
[311807122,1705420279495,-5006.243327,0.000334,2]
[311807123,1705420279506,-2486.08176369,0.00033438,7]
[311807124,1705420279515,-2210.43834707,0.00033438,7]
[311807125,1705420279525,-727.4615543,0.000335,2]
[311807126,1705420279535,-593.0,0.000335,22]
[311807127,1705420279545,-7494.75,0.000335,2]
[311807128,1705420279556,-7494.75,0.000335,2]
[311807129,1705420279566,-7494.75,0.000335,2]
[311807130,1705420279576,-7494.75,0.000335,2]
[311807131,1705420279587,-7494.75,0.000335,2]
[311807132,1705420279597,-7494.75,0.000335,2]
[311807133,1705420279607,-7494.75,0.000335,2]
[311807134,1705420279618,-7494.75,0.000335,2]
[311807135,1705420279628,-7494.75,0.000335,2]
[311807136,1705420279639,-7494.75,0.000335,2]
[311807137,1705420279649,-7494.75,0.000335,2]
[311807138,1705420279660,-7494.75,0.000335,2]
[311807139,1705420279670,-7494.75,0.000335,2]
[311807140,1705420279681,-7494.75,0.000335,2]
[311807141,1705420279692,-7494.75,0.000335,2]
[311807142,1705420279702,-7494.75,0.000335,2]
[311807143,1705420279713,-7494.75,0.000335,2]
[311807144,1705420279724,-4716.72913851,0.000335,2]
[311807145,1705420279738,-2778.02086149,0.000335,2]
[311807146,1705420279749,-6113.30888218,0.000335,2]
[311807147,1705420279873,-370.897592,0.00026634,7]
[311807148,1705420279884,-214.13967634,0.000335,2]
[311807149,1705420279897,-473.22390086,0.000335,2]
[311807150,1705420279960,-629.7262561,0.00028,2]
[311807151,1705420279971,-375.03706191,0.000335,2]
[311807152,1705420279983,-319.04047871,0.000335,2]
[311807153,1705420279993,-5146.62831206,0.000335,2]
[311807154,1705420280005,-2159.9,0.000335,2]
[311807155,1705420280020,-188.22168794,0.000335,2]
[311807156,1705420280031,-594.57588612,0.00033569,7]
[311807157,1705420280044,-1468.80539937,0.00033569,7]
[311807158,1705420280054,-733.74547826,0.00033569,7]
[311807159,1705420280065,-1590.63795195,0.00033569,7]
[311807160,1705420280075,-10000.0,0.000336,15]
[311807161,1705420280088,-300.0,0.000336,3]